[Event "KAZ-ch Open 2019"]
[Site "Almaty"]
[Date "2019.04.23"]
[Round "3.4"]
[White "Kazhgaleyev, Murtas"]
[Black "Urazayev, Arystanbek"]
[Result "1-0"]
[ECO "E43"]
[WhiteElo "2578"]
[BlackElo "2446"]
[Annotator "ChessBase"]
[PlyCount "53"]
[EventDate "2019.04.21"]
[EventType "tourn"]
[EventCountry "KAZ"]
[SourceTitle "playchess.com"]
[Source "ChessBase"]
[SourceQuality "1"]
[TimeControl "40/5400+30:1800+30"]

1. d4 {[%emt 0:02:53]} Nf6 {[%emt 0:00:00]} 2. c4 {[%emt 0:01:11]} e6 {[%emt 0:00:00]} 3. Nc3 {[%emt 0:00:03]} Bb4 {[%emt 0:00:02]} 4. e3 {[%emt 0:00:04]} b6 {[%emt 0:00:39]} 5. Bd3 {[%emt 0:03:51]} Bb7 {[%emt 0:00:07]} 6. Nf3 {[%emt 0:00:04]} Ne4 {[%emt 0:00:45]} 7. Qc2 {[%emt 0:01:20]} f5 {[%emt 0:00:08]} 8. O-O {[%emt 0:03:14]} Nxc3 {[%emt 0:00:30]} 9. bxc3 {[%emt 0:00:11]} Bxf3 {[%emt 0:00:08]} 10. gxf3 {[%emt 0:01:29]} Bd6 {[%emt 0:00:07]} 11. f4 {[%emt 0:02:38]} Qh4 {[%emt 0:00:09]} 12. f3 {[%emt 0:01:52]} g5 {[%emt 0:13:11]} 13. fxg5 {[%emt 0:03:26]} h6 {[%emt 0:07:29]} 14. g6 {[%emt 0:04:17]} Rg8 {[%emt 0:02:34]} 15. e4 {[%emt 0:01:17]} Nc6 {[%emt 0:06:58]} 16. exf5 {[%emt 0:04:54]} exf5 {[%emt 0:00:55]} 17. Bxf5 {[%emt 0:03:25]} Ne7 {[%emt 0:05:56]} 18. Be4 {[%emt 0:02:46]} O-O-O {[%emt 0:05:13]} 19. c5 {[%emt 0:07:55]} bxc5 {[%emt 0:05:01]} 20. Rb1 {[%emt 0:12:52]} Rdf8 {[%emt 0:08:21]} 21. dxc5 {[%emt 0:03:42]} Bxc5+ {[%emt 0:04:36]} 22. Kh1 {[%emt 0:00:46]} d5 {[%emt 0:05:13]} 23. Bd3 {[%emt 0:01:17]} Bb6 {[%emt 0:03:46]} 24. Ba3 {[%emt 0:02:37]} Re8 {[%emt 0:09:04]} 25. c4 {[%emt 0:04:48]} dxc4 {[%emt 0:03:04]} 26. Bxc4 {[%emt 0:00:50]} Rg7 {[%emt 0:05:13]} 27. Qa4 {[%emt 0:03:29]} 1-0

[Event "KAZ-ch Open 2019"]
[Site "Almaty"]
[Date "2019.04.23"]
[Round "3.5"]
[White "Makhnev, Denis"]
[Black "Zhalmakhanov, Ramazan"]
[Result "1/2-1/2"]
[ECO "A62"]
[WhiteElo "2483"]
[BlackElo "2346"]
[Annotator "ChessBase"]
[PlyCount "119"]
[EventDate "2019.04.21"]
[EventType "tourn"]
[EventCountry "KAZ"]
[SourceTitle "playchess.com"]
[Source "ChessBase"]
[SourceQuality "1"]
[TimeControl "40/5400+30:1800+30"]

1. d4 {[%emt 0:02:16]} Nf6 {[%emt 0:00:00]} 2. c4 {[%emt 0:00:10]} e6 {[%emt 0:00:00]} 3. g3 {[%emt 0:00:08]} c5 {[%emt 0:00:06]} 4. d5 {[%emt 0:00:05]} exd5 {[%emt 0:00:05]} 5. cxd5 {[%emt 0:00:03]} d6 {[%emt 0:00:17]} 6. Nc3 {[%emt 0:00:07]} g6 {[%emt 0:00:12]} 7. Bg2 {[%emt 0:00:06]} Bg7 {[%emt 0:00:04]} 8. Nf3 {[%emt 0:00:06]} O-O {[%emt 0:00:07]} 9. O-O {[%emt 0:00:06]} Re8 {[%emt 0:00:05]} 10. Bf4 {[%emt 0:00:07]} Ne4 {[%emt 0:00:12]} 11. Rc1 {[%emt 0:01:21]} Nxc3 {[%emt 0:04:18]} 12. bxc3 {[%emt 0:00:36]} b6 {[%emt 0:03:59]} 13. Re1 {[%emt 0:00:23]} h6 {[%emt 0:17:13]} 14. h4 {[%emt 0:04:52]} Bf5 {[%emt 0:05:03]} 15. Qd2 {[%emt 0:01:21]} Kh7 {[%emt 0:00:58]} 16. Nh2 {[%emt 0:00:06]} Na6 {[%emt 0:12:06]} 17. e4 {[%emt 0:04:06]} Bc8 {[%emt 0:00:06]} 18. c4 {[%emt 0:01:17]} Rb8 {[%emt 0:00:55]} 19. Rb1 {[%emt 0:03:23]} Rb7 {[%emt 0:08:34]} 20. Re2 {[%emt 0:19:46]} Rbe7 {[%emt 0:04:37]} 21. Rbe1 {[%emt 0:00:08]} Nc7 {[%emt 0:03:03]} 22. Qd3 {[%emt 0:04:26]} Kg8 {[%emt 0:03:57]} 23. Bf3 {[%emt 0:05:43]} f5 {[%emt 0:05:43]} 24. Qd2 {[%emt 0:04:09]} Kh7 {[%emt 0:03:30]} 25. exf5 {[%emt 0:00:33]} Bxf5 {[%emt 0:01:19]} 26. Ng4 {[%emt 0:00:13]} Rxe2 {[%emt 0:00:34]} 27. Rxe2 {[%emt 0:00:05]} Rxe2 {[%emt 0:00:11]} 28. Bxe2 {[%emt 0:00:05]} Qf8 {[%emt 0:00:11]} 29. Ne3 {[%emt 0:00:53]} Be4 {[%emt 0:13:42]} 30. f3 {[%emt 0:03:20]} Bf5 {[%emt 0:01:44]} 31. Nxf5 {[%emt 0:02:44]} Qxf5 {[%emt 0:02:49]} 32. Bxd6 {[%emt 0:04:06]} Ne8 {[%emt 0:01:49]} 33. Bf4 {[%emt 0:00:23]} Be5 {[%emt 0:00:31]} 34. Bxe5 {[%emt 0:05:27]} Qxe5 {[%emt 0:00:06]} 35. f4 {[%emt 0:00:04]} Qa1+ {[%emt 0:01:09]} 36. Kg2 {[%emt 0:00:31]} Nd6 {[%emt 0:00:07]} 37. Bd3 {[%emt 0:02:10]} Kg7 {[%emt 0:02:36]} 38. Qe2 {[%emt 0:00:40]} Qf6 {[%emt 0:00:16]} 39. h5 {[%emt 0:16:16]} g5 {[%emt 0:00:49]} 40. Qg4 {[%emt 0:00:00]} Qb2+ {[%emt 0:00:00]} 41. Kh3 {[%emt 0:00:17]} Qa1 {[%emt 0:01:41]} 42. Qe6 {[%emt 0:05:48]} Nf7 {[%emt 0:04:09]} 43. Qe7 {[%emt 0:05:28]} gxf4 {[%emt 0:06:02]} 44. gxf4 {[%emt 0:04:16]} Qh1+ {[%emt 0:01:59]} 45. Kg3 {[%emt 0:00:26]} Qg1+ {[%emt 0:01:08]} 46. Kf3 {[%emt 0:00:05]} Qh1+ {[%emt 0:01:17]} 47. Ke3 {[%emt 0:02:00]} Qc1+ {[%emt 0:04:37]} 48. Ke2 {[%emt 0:01:00]} Qxf4 {[%emt 0:00:50]} 49. Qxa7 {[%emt 0:00:05]} Qh2+ {[%emt 0:02:06]} 50. Ke1 {[%emt 0:00:19]} Qe5+ {[%emt 0:01:43]} 51. Kd2 {[%emt 0:00:16]} Qb2+ {[%emt 0:01:42]} 52. Kd1 {[%emt 0:00:16]} Qd4 {[%emt 0:03:21]} 53. Kc2 {[%emt 0:00:20]} Qf2+ {[%emt 0:00:06]} 54. Kb1 {[%emt 0:00:10]} Qe1+ {[%emt 0:00:44]} 55. Kb2 {[%emt 0:00:30]} Qd2+ {[%emt 0:00:21]} 56. Bc2 {[%emt 0:00:07]} Qb4+ {[%emt 0:00:11]} 57. Bb3 {[%emt 0:00:04]} Qd2+ {[%emt 0:00:03]} 58. Bc2 {[%emt 0:00:03]} Qb4+ 59. Bb3 {[%emt 0:00:07]} Qd2+ {[%emt 0:00:10]} 60. Bc2 1/2-1/2

[Event "KAZ-ch Open 2019"]
[Site "Almaty"]
[Date "2019.04.23"]
[Round "3.6"]
[White "Ismagambetov, Anuar"]
[Black "Moisseyenko, Ilya"]
[Result "1-0"]
[ECO "B97"]
[WhiteElo "2554"]
[BlackElo "2329"]
[Annotator "ChessBase"]
[PlyCount "112"]
[EventDate "2019.04.21"]
[EventType "tourn"]
[EventCountry "KAZ"]
[SourceTitle "playchess.com"]
[Source "ChessBase"]
[SourceQuality "1"]
[TimeControl "40/5400+30:1800+30"]

1. e4 {[%emt 0:00:00]} c5 {[%emt 0:00:00]} 2. Nf3 {[%emt 0:00:00]} d6 {[%emt 0:00:00]} 3. d4 {[%emt 0:00:00]} Nf6 {[%emt 0:00:06]} 4. Nc3 {[%emt 0:00:08]} cxd4 {[%emt 0:00:08]} 5. Nxd4 {[%emt 0:00:03]} a6 {[%emt 0:00:10]} 6. Bg5 {[%emt 0:01:30]} e6 {[%emt 0:00:09]} 7. f4 {[%emt 0:00:04]} Qb6 {[%emt 0:00:08]} 8. Qd3 {[%emt 0:00:06]} Qxb2 {[%emt 0:00:47]} 9. Rb1 {[%emt 0:00:10]} Qa3 {[%emt 0:00:04]} 10. f5 {[%emt 0:00:09]} Nc6 {[%emt 0:01:14]} 11. fxe6 {[%emt 0:06:06]} fxe6 {[%emt 0:00:05]} 12. Nxc6 {[%emt 0:02:37]} bxc6 {[%emt 0:00:17]} 13. Be2 {[%emt 0:00:07]} Be7 {[%emt 0:00:28]} 14. Bh5+ {[%emt 0:15:45]} g6 {[%emt 0:03:44]} 15. e5 {[%emt 0:08:15]} dxe5 {[%emt 0:06:34]} 16. Rb3 {[%emt 0:05:44]} Qc5 {[%emt 0:21:17]} 17. Bxg6+ {[%emt 0:05:12]} hxg6 {[%emt 0:00:30]} 18. Bxf6 {[%emt 0:03:11]} Bxf6 {[%emt 0:11:46]} 19. Qxg6+ {[%emt 0:00:05]} Ke7 {[%emt 0:00:04]} 20. Qxf6+ {[%emt 0:00:21]} Kxf6 {[%emt 0:00:05]} 21. Ne4+ {[%emt 0:00:03]} Ke7 {[%emt 0:01:36]} 22. Nxc5 {[%emt 0:00:05]} e4 {[%emt 0:00:08]} 23. O-O {[%emt 0:02:10]} e5 {[%emt 0:01:31]} 24. Nxe4 {[%emt 0:09:31]} Rh4 {[%emt 0:03:28]} 25. Re1 {[%emt 0:00:33]} Ra7 {[%emt 0:06:10]} 26. Rg3 {[%emt 0:05:06]} Rd7 {[%emt 0:02:47]} 27. Rg7+ {[%emt 0:00:44]} Kd8 {[%emt 0:00:29]} 28. Rxd7+ {[%emt 0:00:06]} Kxd7 {[%emt 0:01:03]} 29. g3 {[%emt 0:00:05]} Rh6 {[%emt 0:01:03]} 30. Ng5 {[%emt 0:01:13]} Rd6 {[%emt 0:02:05]} 31. Nf3 {[%emt 0:00:32]} Kc7 {[%emt 0:00:21]} 32. Rxe5 {[%emt 0:01:01]} Be6 {[%emt 0:00:11]} 33. a3 {[%emt 0:00:57]} Bd5 {[%emt 0:03:18]} 34. Re3 {[%emt 0:01:31]} Rd8 {[%emt 0:02:00]} 35. h4 {[%emt 0:00:36]} Rb8 {[%emt 0:00:14]} 36. Kf2 {[%emt 0:00:47]} Rb2 {[%emt 0:00:20]} 37. Ne1 {[%emt 0:00:29]} Kd6 {[%emt 0:01:23]} 38. g4 {[%emt 0:00:07]} Rb7 {[%emt 0:01:06]} 39. Kg3 {[%emt 0:00:35]} Kc5 {[%emt 0:00:27]} 40. g5 {[%emt 0:00:00]} Kd4 {[%emt 0:00:00]} 41. Rd3+ {[%emt 0:00:45]} Ke4 {[%emt 0:00:34]} 42. Rf3 {[%emt 0:03:44]} Rb1 {[%emt 0:00:56]} 43. Ng2 {[%emt 0:02:40]} Rg1 {[%emt 0:05:31]} 44. g6 {[%emt 0:01:07]} Ke5 {[%emt 0:00:16]} 45. g7 {[%emt 0:00:36]} Rc1 {[%emt 0:02:18]} 46. h5 {[%emt 0:01:08]} Rh1 {[%emt 0:00:09]} 47. Kg4 {[%emt 0:12:29]} Rg1 {[%emt 0:03:41]} 48. Rf5+ {[%emt 0:00:22]} Ke4 {[%emt 0:00:44]} 49. Rf2 {[%emt 0:00:04]} Ke5 {[%emt 0:00:32]} 50. Kh4 {[%emt 0:01:22]} a5 {[%emt 0:02:57]} 51. h6 {[%emt 0:01:30]} a4 {[%emt 0:01:08]} 52. Nf4 {[%emt 0:05:39]} Bg8 {[%emt 0:04:21]} 53. Nh3 {[%emt 0:00:35]} Rg6 {[%emt 0:00:13]} 54. Kh5 {[%emt 0:00:28]} Rf6 {[%emt 0:02:10]} 55. Re2+ {[%emt 0:00:54]} Kd4 {[%emt 0:00:21]} 56. Ng5 {[%emt 0:00:13]} Kd5 1-0

[Event "KAZ-ch Open 2019"]
[Site "Almaty"]
[Date "2019.04.27"]
[Round "6.1"]
[White "Agmanov, Zhandos"]
[Black "Zhalmakhanov, Ramazan"]
[Result "1/2-1/2"]
[ECO "B31"]
[WhiteElo "2394"]
[BlackElo "2346"]
[Annotator "NA RC"]
[PlyCount "42"]
[EventDate "2019.04.21"]
[EventType "tourn"]
[EventCountry "KAZ"]
[SourceTitle "playchess.com"]
[Source "ChessBase"]
[SourceQuality "1"]
[TimeControl "40/5400+30:1800+30"]

{[%evp 8,42,37,5,8,8,32767,16,16,32767,14,32767,21,32767,8,10,33,0,32767,6,0,-2,32767,0,32767,35,62,31,68,32767,48,44,32767,-70,-55,-77,-68]} 1. e4 {[%emt 0:00:00]} c5 {[%emt 0:00:00]} 2. Nf3 {[%emt 0:00:00]} Nc6 {[%emt 0:00:00]} 3. Bb5 {[%emt 0:00:00]} g6 {[%emt 0:00:06]} 4. O-O {[%emt 0:00:01]} Bg7 {[%emt 0:00:06]} 5. c3 {[%emt 0:00:09]} Nf6 {[%emt 0:02:19]} 6. Re1 {[%emt 0:00:14]} O-O {[%emt 0:00:39]} 7. h3 {[%emt 0:00:02]} e5 {[%emt 0:06:32]} 8. d3 {[%emt 0:17:37]} d6 {[%emt 0:00:50]} 9. Nbd2 {[%emt 0:02:33]} h6 {[%emt 0:12:12] B31: Sicilian: 2...Nc6 3 Bb5 g6} 10. a3 {[%emt 0:03:13]} (10. Nf1 Be6 11. Ng3 Rc8 12. Ba4 Kh7 13. Be3 Nd7 14. Bxc6 bxc6 15. d4 exd4 16. cxd4 d5 17. Qd2 {½-½ (74) Kasimdzhanov,R (2683)-Moiseenko,A (2667) Riadh 2017}) 10... Qc7 {[%emt 0:10:24]} 11. b4 {[%emt 0:02:43]} b6 $146 {[%emt 0:06:05]} ({Predecessor:} 11... a6 12. Bxc6 Qxc6 13. bxc5 Qxc5 14. a4 Be6 15. Ba3 Qc7 16. d4 Rfd8 17. d5 {1-0 (38) Weldon,D (2136)-Sojka,V (2199) ICCF email 2014}) 12. Rb1 {[%emt 0:17:59]} a6 {[%emt 0:08:02]} 13. Bc4 {[%emt 0:11:27]} b5 {[%emt 0:02:33]} 14. Ba2 {[%emt 0:00:55]} Rd8 {[%emt 0:01:16]} 15. Qc2 {[%emt 0:05:00]} Bf8 {[%emt 0:12:59]} 16. Nf1 {[%emt 0:03:32]} Bb7 {[%emt 0:02:01]} 17. Be3 {[%emt 0:01:53]} Rac8 {[%emt 0:03:36]} 18. Ng3 {[%emt 0:01:10]} cxb4 {[%emt 0:02:56]} 19. cxb4 {[%emt 0:00:24]} d5 {[%emt 0:05:10]} 20. d4 {[%emt 0:11:32]} (20. Rbc1 $14) 20... exd4 {[%emt 0:08:07]} 21. Nxd4 {[%emt 0:00:30]} Nxe4 $15 {[%emt 0:01:33]} 1/2-1/2

[Event "KAZ-ch Open 2019"]
[Site "Almaty"]
[Date "2019.04.27"]
[Round "6.2"]
[White "Urazayev, Arystanbek"]
[Black "Moisseyenko, Ilya"]
[Result "1/2-1/2"]
[ECO "B03"]
[WhiteElo "2446"]
[BlackElo "2329"]
[Annotator "RC"]
[PlyCount "144"]
[EventDate "2019.04.21"]
[EventType "tourn"]
[EventCountry "KAZ"]
[SourceTitle "playchess.com"]
[Source "ChessBase"]
[SourceQuality "1"]
[TimeControl "40/5400+30:1800+30"]

1. e4 {[%emt 0:00:00]} Nf6 {[%emt 0:00:00]} 2. e5 {[%emt 0:00:33]} Nd5 {[%emt 0:00:00]} 3. c4 {[%emt 0:00:25]} Nb6 {[%emt 0:00:00]} 4. d4 {[%emt 0:00:02]} d6 {[%emt 0:00:00]} 5. exd6 {[%emt 0:00:25]} exd6 {[%emt 0:00:00]} 6. h3 {[%emt 0:00:05]} Be7 {[%emt 0:00:10]} 7. Nf3 {[%emt 0:01:30]} Bf5 {[%emt 0:00:36]} 8. Be2 {[%emt 0:00:14]} O-O {[%emt 0:00:13]} 9. O-O {[%emt 0:00:46]} Nc6 {[%emt 0:02:43]} 10. Nc3 {[%emt 0:00:14]} Bf6 {[%emt 0:03:46]} 11. Bf4 {[%emt 0:00:53]} Re8 {[%emt 0:00:30]} 12. Qd2 {[%emt 0:00:54]} h6 {[%emt 0:04:57]} 13. Rfd1 {[%emt 0:00:15]} Qd7 {[%emt 0:00:37]} 14. Rac1 {[%emt 0:00:31]} Rad8 {[%emt 0:00:33]} 15. Bf1 {[%emt 0:01:59]} Bg6 {[%emt 0:01:44]} 16. b3 {[%emt 0:02:59]} Bh5 {[%emt 0:02:30]} 17. g4 {[%emt 0:04:57]} Bg6 {[%emt 0:00:18]} 18. Bg3 {[%emt 0:03:15]} Bh7 {[%emt 0:22:26]} 19. Qf4 {[%emt 0:04:38]} Ne7 {[%emt 0:02:16]} 20. Ne4 {[%emt 0:10:31]} Bxe4 {[%emt 0:08:34]} 21. Qxe4 {[%emt 0:00:09]} Qc6 {[%emt 0:07:34]} 22. Qd3 {[%emt 0:02:47]} Qd7 {[%emt 0:03:28]} 23. Qd2 {[%emt 0:11:10]} Qc8 {[%emt 0:06:33]} 24. Re1 {[%emt 0:02:42]} Ng6 {[%emt 0:00:33]} 25. Bd3 {[%emt 0:03:11]} Rxe1+ {[%emt 0:00:59]} 26. Rxe1 {[%emt 0:00:10]} Re8 {[%emt 0:01:15]} 27. Rxe8+ {[%emt 0:04:13]} Qxe8 {[%emt 0:00:04]} 28. h4 {[%emt 0:00:44]} Qd8 {[%emt 0:02:48]} 29. Qe3 {[%emt 0:06:59]} Nf8 {[%emt 0:05:45]} 30. Kg2 {[%emt 0:03:51]} Nbd7 {[%emt 0:01:43]} 31. Be4 {[%emt 0:09:08]} b6 {[%emt 0:01:30]} 32. Bd5 {[%emt 0:01:10]} Qe7 {[%emt 0:02:17]} 33. g5 {[%emt 0:05:56]} hxg5 {[%emt 0:01:11]} 34. Nxg5 {[%emt 0:08:24]} Bxg5 {[%emt 0:01:55]} 35. hxg5 {[%emt 0:00:06]} Qxe3 {[%emt 0:00:28]} 36. fxe3 {[%emt 0:00:05]} g6 {[%emt 0:00:22]} 37. Kf3 {[%emt 0:03:20]} Ne6 {[%emt 0:00:27]} 38. Bh4 {[%emt 0:03:00]} Kf8 {[%emt 0:00:05]} 39. b4 {[%emt 0:02:36]} Ke7 {[%emt 0:00:02]} 40. a3 {[%emt 0:00:00]} Ndf8 {[%emt 0:00:00]} 41. Kg4 {[%emt 0:03:54]} Nh7 {[%emt 0:00:27]} 42. Be4 {[%emt 0:02:58]} Ke8 {[%emt 0:04:05]} 43. Bd3 {[%emt 0:01:30]} Ke7 {[%emt 0:01:06]} 44. Bc2 {[%emt 0:08:42]} Ke8 {[%emt 0:00:46]} 45. Bb1 {[%emt 0:02:32]} Ke7 {[%emt 0:00:59]} 46. Bc2 {[%emt 0:00:04]} Ke8 {[%emt 0:00:08]} 47. a4 {[%emt 0:00:04]} Ke7 {[%emt 0:01:32]} 48. Bd3 {[%emt 0:00:55]} Ke8 {[%emt 0:00:26]} 49. Bb1 {[%emt 0:00:10]} Ke7 {[%emt 0:00:03]} 50. Bc2 {[%emt 0:00:10]} Ke8 {[%emt 0:00:04]} 51. a5 {[%emt 0:00:09]} Ke7 {[%emt 0:00:37]} 52. Ba4 {[%emt 0:03:19]} Kd8 {[%emt 0:01:15]} 53. Bc6 {[%emt 0:01:10]} Ke7 {[%emt 0:00:06]} 54. a6 {[%emt 0:02:10]} Nd8 {[%emt 0:00:37]} 55. Ba4 {[%emt 0:01:51]} Ne6 {[%emt 0:00:11]} 56. Bb3 {[%emt 0:04:22]} Ke8 {[%emt 0:02:53]} 57. Bc2 {[%emt 0:00:10]} Ke7 {[%emt 0:00:04]} 58. Bf2 {[%emt 0:01:24]} Ke8 {[%emt 0:01:31]} 59. e4 {[%emt 0:03:32]} Nexg5 {[%emt 0:03:23]} 60. d5 {[%emt 0:00:10]} Kd7 {[%emt 0:02:31]} 61. Bd4 {[%emt 0:02:58]} Kc8 {[%emt 0:03:18]} 62. c5 {[%emt 0:01:18]} f6 {[%emt 0:05:06]} 63. cxd6 {[%emt 0:01:28]} cxd6 {[%emt 0:00:02]} 64. Bxf6 {[%emt 0:01:00]} Nxf6+ {[%emt 0:01:07]} 65. Kxg5 {[%emt 0:00:07]} Nd7 {[%emt 0:00:02]} 66. Kxg6 {[%emt 0:00:51]} Kc7 {[%emt 0:00:06]} 67. Kf5 {[%emt 0:00:35]} Ne5 {[%emt 0:00:14]} 68. Ke6 {[%emt 0:00:20]} Nd7 {[%emt 0:00:13]} 69. Bd1 {[%emt 0:00:39]} Ne5 {[%emt 0:00:13]} 70. Be2 {[%emt 0:00:16]} Nd7 {[%emt 0:00:07]} 71. Kf5 {[%emt 0:00:34]} Ne5 {[%emt 0:00:09]} 72. Kf4 {[%emt 0:00:22]} Kd7 {[%emt 0:00:22] Kxe5} 1/2-1/2

[Event "KAZ-ch Open 2019"]
[Site "Almaty"]
[Date "2019.04.27"]
[Round "6.4"]
[White "Kostenko, Petr"]
[Black "Makhnev, Denis"]
[Result "1/2-1/2"]
[ECO "C44"]
[WhiteElo "2450"]
[BlackElo "2483"]
[Annotator "ChessBase"]
[PlyCount "98"]
[EventDate "2019.04.21"]
[EventType "tourn"]
[EventCountry "KAZ"]
[SourceTitle "playchess.com"]
[Source "ChessBase"]
[SourceQuality "1"]
[TimeControl "40/5400+30:1800+30"]

1. e4 {[%emt 0:00:55]} e5 {[%emt 0:00:00]} 2. Nf3 {[%emt 0:00:12]} Nc6 {[%emt 0:00:00]} 3. c3 {[%emt 0:00:24]} Nf6 {[%emt 0:00:04]} 4. d3 {[%emt 0:00:19]} d5 {[%emt 0:00:28]} 5. Nbd2 {[%emt 0:00:06]} Be7 {[%emt 0:02:19]} 6. b4 {[%emt 0:01:13]} a6 {[%emt 0:01:21]} 7. Be2 {[%emt 0:00:05]} O-O {[%emt 0:01:05]} 8. O-O {[%emt 0:00:09]} Bg4 {[%emt 0:12:55]} 9. Bb2 {[%emt 0:02:57]} Bxf3 {[%emt 0:16:07]} 10. Bxf3 {[%emt 0:02:49]} d4 {[%emt 0:00:06]} 11. Qb1 {[%emt 0:03:19]} Qd7 {[%emt 0:03:13]} 12. Rc1 {[%emt 0:03:02]} dxc3 {[%emt 0:06:55]} 13. Bxc3 {[%emt 0:00:06]} Rfd8 {[%emt 0:00:05]} 14. Be2 {[%emt 0:00:19]} Nd4 {[%emt 0:08:34]} 15. Bxd4 {[%emt 0:05:32]} Qxd4 {[%emt 0:00:06]} 16. Rxc7 {[%emt 0:11:19]} Qxb4 {[%emt 0:00:07]} 17. Nf3 {[%emt 0:00:23]} Rd7 {[%emt 0:00:12]} 18. Rc4 {[%emt 0:08:23]} Qxb1+ {[%emt 0:06:13]} 19. Rxb1 {[%emt 0:00:06]} Bd6 {[%emt 0:00:05]} 20. d4 {[%emt 0:13:17]} exd4 {[%emt 0:10:05]} 21. e5 {[%emt 0:05:06]} Re8 {[%emt 0:00:08]} 22. exf6 {[%emt 0:05:04]} Rxe2 {[%emt 0:00:05]} 23. Nxd4 {[%emt 0:01:34]} Re5 {[%emt 0:00:04]} 24. Nf3 {[%emt 0:00:54]} Rd5 {[%emt 0:01:10]} 25. g4 {[%emt 0:10:11]} h5 {[%emt 0:02:09]} 26. Rc8+ {[%emt 0:00:44]} Kh7 {[%emt 0:00:44]} 27. fxg7 {[%emt 0:00:10]} Kxg7 {[%emt 0:00:04]} 28. h3 {[%emt 0:00:58]} hxg4 {[%emt 0:01:43]} 29. hxg4 {[%emt 0:00:03]} Ra5 {[%emt 0:03:05]} 30. Nh4 {[%emt 0:01:18]} Bc5 {[%emt 0:04:44]} 31. Rb2 {[%emt 0:01:03]} Kf6 {[%emt 0:00:19]} 32. Kg2 {[%emt 0:00:23]} Rd4 {[%emt 0:06:01]} 33. f3 {[%emt 0:02:13]} Rb4 {[%emt 0:04:34]} 34. Rc2 {[%emt 0:03:02]} Bd4 {[%emt 0:01:52]} 35. Nf5 {[%emt 0:03:38]} Be5 {[%emt 0:02:04]} 36. Ne3 {[%emt 0:00:55]} Bf4 {[%emt 0:00:19]} 37. Nd1 {[%emt 0:02:21]} Kg7 {[%emt 0:01:55]} 38. Re2 {[%emt 0:02:29]} Rd4 {[%emt 0:04:35]} 39. Nf2 {[%emt 0:00:19]} Re5 {[%emt 0:00:56]} 40. Ne4 {[%emt 0:00:00]} b5 {[%emt 0:00:00]} 41. Ra8 {[%emt 0:04:38]} Ra4 {[%emt 0:10:01]} 42. Rc2 {[%emt 0:02:49]} Rd5 {[%emt 0:01:18]} 43. Re2 {[%emt 0:03:07]} Ra3 {[%emt 0:00:53]} 44. Ng3 {[%emt 0:01:34]} Bxg3 {[%emt 0:00:20]} 45. Kxg3 {[%emt 0:00:03]} Rd1 {[%emt 0:00:08]} 46. Rf2 {[%emt 0:06:32]} Ra1 {[%emt 0:00:32]} 47. Rb8 {[%emt 0:01:13]} R3xa2 {[%emt 0:03:06]} 48. Rxa2 {[%emt 0:00:04]} Rxa2 {[%emt 0:00:05]} 49. f4 {[%emt 0:01:04]} Ra1 1/2-1/2